[Event "Czech Open-Rapid 2022"]
[Site "Pardubice"]
[Date "2022.07.21"]
[Round "4.29"]
[White "Franc, Lubor"]
[Black "Babula, Vlastimil jr"]
[Result "0-1"]
[ECO "B56"]
[WhiteElo "1747"]
[BlackElo "2039"]
[Annotator "TA"]
[PlyCount "67"]
[EventDate "2022.07.20"]
[EventType "swiss"]
[EventCountry "CZE"]
[SourceTitle "playchess.com"]
[Source "ChessBase"]
[SourceQuality "1"]
[TimeControl "1200+10"]

{[%evp 18,67,0,0,0,0,0,-29,-31,-9,-24,-52,-12,-21,-16,-30,-53,-52,-54,-100,-32,-75,0,0,21,20,21,2,18,4,10,10,35,0,35,35,68,58,54,52,48,-77,-73,-71,-82,-106,-112,-225,-217,-213,-208,-331]} 1. e4 {[%emt 0:00:07]} c5 {[%emt 0:00:01]} 2. Nf3 {[%emt 0:00:05]} d6 {[%emt 0:00:02]} 3. d4 {[%emt 0:00:07]} cxd4 {[%emt 0:00:01]} 4. Nxd4 {[%emt 0:00:03]} Nf6 {[%emt 0:00:02]} 5. Nc3 {[%emt 0:00:04]} Nc6 {[%emt 0:00:02]} 6. Nb3 {[%emt 0:01:28]} g6 {[%emt 0:00:03]} 7. g3 {[%emt 0:00:10]} Bg7 {[%emt 0:00:03]} 8. Bg2 {[%emt 0:00:03]} O-O {[%emt 0:00:04]} 9. h3 {[%emt 0:00:15]} Bd7 {[%emt 0:00:20]} 10. O-O {[%emt 0:00:04]} Ne5 {[%emt 0:01:27] B70: Sicilian Dragon: 6 g3 and 6 Be2 (without a later Be3).} 11. Qe2 {[%emt 0:00:30]} Rc8 {[%emt 0:00:57] [#]} 12. Nd2 $146 {[%emt 0:01:09]} ({Predecessor:} 12. Rd1 Qc7 13. g4 h6 14. g5 hxg5 15. Bxg5 Be6 16. Nd4 Qd7 17. Nxe6 Qxe6 18. Bxf6 Qxf6 {0-1 (41) Granda Zuniga,J (2644)-Gashimov,V (2740) Ourense 2009}) 12... Be6 {[%emt 0:02:33] Black has an edge.} 13. Rd1 {[%emt 0:03:32]} Nfd7 {[%emt 0:03:17]} 14. Kh2 {[%emt 0:10:31]} Nb6 {[%emt 0:01:08]} 15. f4 {[%emt 0:00:58]} Nec4 {[%emt 0:00:17]} 16. e5 {[%emt 0:00:45]} Nxd2 {[%emt 0:00:54]} 17. Rxd2 {[%emt 0:00:02]} Nc4 {[%emt 0:00:10]} 18. Rd1 {[%emt 0:00:15] [#]} (18. Rd3 $15) 18... Qe8 {[%emt 0:03:16]} (18... Qc7 $1 $17 {[%cal Rd6e5]} 19. Nb5 Qb6) 19. exd6 {[%emt 0:00:45]} Nxd6 {[%emt 0:00:09]} (19... exd6 $17 20. a4 (20. Bxb7 Rb8 $17) 20... b6) 20. Nd5 $11 {[%emt 0:00:27]} Nb5 {[%emt 0:03:40]} 21. c3 {[%emt 0:00:52][%cal Of4f5] Against Nd4} Nc7 {[%emt 0:00:03]} 22. Be3 {[%emt 0:00:24]} Nxd5 {[%emt 0:00:22]} 23. Bxd5 {[%emt 0:00:02]} Bxd5 {[%emt 0:01:21]} 24. Rxd5 {[%emt 0:00:01]} Qa4 {[%emt 0:00:06]} 25. Qd1 {[%emt 0:00:27]} (25. Qb5 $5 {[%cal Rb5a4]} Qe4 26. Qd3 $14) 25... Qc4 {[%emt 0:00:50]} 26. Qd3 {[%emt 0:00:10]} e6 {[%emt 0:01:05]} 27. Qxc4 {[%emt 0:00:16]} Rxc4 {[%emt 0:00:01][%cal Bc8c4,Bc4e4,Be4e2,Be2b2][%mdl 32]} 28. Rd7 {[%emt 0:00:01]} Re4 {[%emt 0:00:01]} 29. Bxa7 {[%emt 0:01:06]} (29. Re1 $14 {stays ahead.}) 29... Re2+ $17 {[%emt 0:00:03]} 30. Kh1 {[%emt 0:00:00]} Rxb2 {[%emt 0:00:03]} 31. Bd4 {[%emt 0:00:05]} Rc8 {[%emt 0:00:36]} 32. a4 {[%emt 0:00:16]} (32. Be3 $17) 32... Bxd4 $19 {[%emt 0:00:16]} 33. cxd4 {[%emt 0:00:03]} Rcc2 {[%emt 0:00:04] And now ...Rh2+ would win.} 34. a5 {[%emt 0:00:47] Weighted Error Value: White=0.27 (precise) /Black=0.14 (very precise)} (34. d5 {was called for.}) 0-1

[Event "Czech Open-Rapid 2022"]
[Site "Pardubice"]
[Date "2022.07.21"]
[Round "4.30"]
[White "Zdrazil, Tomas"]
[Black "Freibergs, Andrejs"]
[Result "1-0"]
[ECO "C40"]
[WhiteElo "2122"]
[BlackElo "1574"]
[Annotator "NA RC"]
[PlyCount "98"]
[EventDate "2022.07.20"]
[EventType "swiss"]
[EventCountry "CZE"]
[SourceTitle "playchess.com"]
[Source "ChessBase"]
[SourceQuality "1"]
[TimeControl "1200+10"]

1. e4 {[%emt 0:00:02]} e5 {[%emt 0:00:10]} 2. Nf3 {[%emt 0:00:02]} f5 {[%emt 0:00:01]} 3. Nxe5 {[%emt 0:09:07]} Qf6 {[%emt 0:00:02]} 4. d4 {[%emt 0:01:44]} d6 {[%emt 0:00:01]} 5. Nc4 {[%emt 0:01:05]} fxe4 {[%emt 0:00:03]} 6. Nc3 {[%emt 0:00:23]} Qg6 {[%emt 0:00:07]} 7. f3 {[%emt 0:05:53]} exf3 {[%emt 0:00:30]} 8. Qxf3 {[%emt 0:00:03]} Nf6 {[%emt 0:00:03]} 9. Bd3 {[%emt 0:00:11]} Qg4 {[%emt 0:01:56]} 10. Qxg4 {[%emt 0:00:06]} Bxg4 {[%emt 0:00:06]} 11. O-O {[%emt 0:00:39]} Nc6 {[%emt 0:02:38]} 12. Bg5 {[%emt 0:00:50]} Be7 {[%emt 0:01:06]} 13. Rae1 {[%emt 0:00:20]} Kd7 {[%emt 0:00:29]} 14. h3 {[%emt 0:00:09]} Bh5 {[%emt 0:01:49]} 15. Bf5+ {[%emt 0:00:04]} Kd8 {[%emt 0:00:10]} 16. d5 {[%emt 0:01:51]} Nxd5 {[%emt 0:00:20]} 17. Nxd5 {[%emt 0:00:19]} Bxg5 {[%emt 0:00:02]} 18. Nce3 {[%emt 0:00:11]} Ne5 {[%emt 0:00:55]} 19. g4 {[%emt 0:00:07]} Bf7 {[%emt 0:00:11]} 20. c3 {[%emt 0:00:03]} c6 {[%emt 0:00:20]} 21. Nf4 {[%emt 0:00:02]} Kc7 {[%emt 0:00:35]} 22. Be6 {[%emt 0:00:07]} Bxf4 {[%emt 0:00:24]} 23. Bxf7 {[%emt 0:00:01]} g5 {[%emt 0:00:01]} 24. Nf5 {[%emt 0:00:10]} Rhf8 {[%emt 0:00:29]} 25. Bh5 {[%emt 0:00:08]} Ng6 {[%emt 0:00:43]} 26. Bxg6 {[%emt 0:00:05]} hxg6 {[%emt 0:00:00]} 27. Nd4 {[%emt 0:00:46]} Kd7 {[%emt 0:00:26]} 28. Re2 {[%emt 0:00:06]} Rae8 {[%emt 0:00:08]} 29. Rfe1 {[%emt 0:00:01]} Bg3 {[%emt 0:00:33]} 30. Rxe8 {[%emt 0:00:03]} Rxe8 {[%emt 0:00:01]} 31. Rxe8 {[%emt 0:00:04]} Kxe8 {[%emt 0:00:01]} 32. Kg2 {[%emt 0:00:04]} Be5 {[%emt 0:00:13]} 33. Nf3 {[%emt 0:00:10]} Bf6 {[%emt 0:00:04]} 34. h4 {[%emt 0:00:30]} gxh4 {[%emt 0:00:50]} 35. g5 {[%emt 0:00:01]} Be5 {[%emt 0:00:01]} 36. Nxh4 {[%emt 0:00:15]} Bf4 {[%emt 0:00:05]} 37. Nxg6 {[%emt 0:00:26]} Bxg5 {[%emt 0:00:03]} 38. Kf3 {[%emt 0:00:04]} Kf7 {[%emt 0:00:05]} 39. Nf4 {[%emt 0:00:14]} Bxf4 {[%emt 0:00:01]} 40. Kxf4 {[%emt 0:00:01]} Ke6 {[%emt 0:00:01]} 41. Ke4 {[%emt 0:00:08]} a5 {[%emt 0:00:37]} 42. b3 {[%emt 0:00:09]} b5 {[%emt 0:00:12]} 43. a3 {[%emt 0:00:19]} b4 {[%emt 0:01:57]} 44. axb4 {[%emt 0:00:10]} axb4 {[%emt 0:00:02]} 45. cxb4 {[%emt 0:00:05]} d5+ {[%emt 0:00:03]} 46. Kd4 {[%emt 0:00:04]} Kd6 {[%emt 0:00:05]} 47. Kd3 {[%emt 0:00:09]} Ke5 {[%emt 0:00:02]} 48. Ke3 {[%emt 0:00:23]} d4+ {[%emt 0:00:01]} 49. Kd3 {[%emt 0:00:08]} Kd5 {[%emt 0:00:01]} 1-0

[Event "Czech Open-Rapid 2022"]
[Site "Pardubice"]
[Date "2022.07.21"]
[Round "4.31"]
[White "Hrabal, Matej"]
[Black "Bertram, Karsten"]
[Result "0-1"]
[ECO "B01"]
[WhiteElo "1950"]
[BlackElo "2062"]
[Annotator "NA RC"]
[PlyCount "76"]
[EventDate "2022.07.20"]
[EventType "swiss"]
[EventCountry "CZE"]
[SourceTitle "playchess.com"]
[Source "ChessBase"]
[SourceQuality "1"]
[TimeControl "1200+10"]

1. e4 {[%emt 0:00:03]} d5 {[%emt 0:00:00]} 2. exd5 Qxd5 {[%emt 0:00:01]} 3. Nf3 {[%emt 0:00:06]} Bg4 {[%emt 0:00:02]} 4. Be2 {[%emt 0:00:01]} Nc6 {[%emt 0:00:02]} 5. d4 {[%emt 0:00:34]} O-O-O {[%emt 0:00:14]} 6. c4 {[%emt 0:00:49]} Qf5 {[%emt 0:00:01]} 7. Be3 {[%emt 0:00:54]} Bxf3 {[%emt 0:00:36]} 8. Bxf3 {[%emt 0:00:13]} Nxd4 {[%emt 0:00:08]} 9. Bxd4 {[%emt 0:02:00]} Qe6+ {[%emt 0:00:11]} 10. Be2 {[%emt 0:00:19]} Qe4 {[%emt 0:00:06]} 11. Nc3 {[%emt 0:01:57]} Qxd4 {[%emt 0:00:09]} 12. O-O {[%emt 0:00:46]} Qxd1 {[%emt 0:00:39]} 13. Rfxd1 {[%emt 0:00:04]} Rxd1+ {[%emt 0:00:13]} 14. Rxd1 {[%emt 0:00:01]} e6 {[%emt 0:00:04]} 15. a3 {[%emt 0:00:27]} Nf6 {[%emt 0:00:04]} 16. Bf3 {[%emt 0:01:03]} Be7 {[%emt 0:02:12]} 17. Ne4 {[%emt 0:01:07]} Nd7 {[%emt 0:00:33]} 18. g3 {[%emt 0:01:22]} Ne5 {[%emt 0:00:43]} 19. Be2 {[%emt 0:00:01]} Rd8 {[%emt 0:00:22]} 20. Rxd8+ {[%emt 0:00:16]} Kxd8 {[%emt 0:00:01]} 21. f4 {[%emt 0:02:56]} Nc6 {[%emt 0:00:10]} 22. Bd3 {[%emt 0:00:36]} a5 {[%emt 0:00:59]} 23. Nd2 {[%emt 0:00:54]} f5 {[%emt 0:01:36]} 24. Nf3 {[%emt 0:00:12]} Bf6 {[%emt 0:00:12]} 25. b3 {[%emt 0:00:18]} Ke7 {[%emt 0:00:24]} 26. Kf2 {[%emt 0:00:24]} Kd6 {[%emt 0:00:04]} 27. Ke3 {[%emt 0:01:40]} Kc5 {[%emt 0:01:05]} 28. h3 {[%emt 0:00:55]} h6 {[%emt 0:00:03]} 29. g4 {[%emt 0:01:01]} fxg4 {[%emt 0:00:52]} 30. hxg4 {[%emt 0:00:01]} Bb2 {[%emt 0:00:56]} 31. a4 {[%emt 0:00:21]} Kb4 {[%emt 0:00:30]} 32. Bc2 {[%emt 0:00:33]} Kc3 {[%emt 0:02:56]} 33. Bd1 {[%emt 0:00:01]} Ba3 {[%emt 0:00:23]} 34. Ke4 {[%emt 0:02:12]} Bd6 {[%emt 0:08:03]} 35. Nd4 {[%emt 0:00:00]} Nxd4 {[%emt 0:00:00]} 36. Bf3 {[%emt 0:01:24]} Kc2 {[%emt 0:00:00]} 37. c5 {[%emt 0:00:22]} Bxc5 {[%emt 0:00:28]} 38. Ke5 {[%emt 0:00:00]} g6 {[%emt 0:01:02]} 0-1

[Event "Czech Open-Rapid 2022"]
[Site "Pardubice"]
[Date "2022.07.21"]
[Round "4.32"]
[White "Valenta, Vit Vaclav"]
[Black "Hon, Jiri"]
[Result "1-0"]
[ECO "A00"]
[WhiteElo "1996"]
[BlackElo "1778"]
[Annotator "TA"]
[PlyCount "73"]
[EventDate "2022.07.20"]
[EventType "swiss"]
[EventCountry "CZE"]
[SourceTitle "playchess.com"]
[Source "ChessBase"]
[SourceQuality "1"]
[TimeControl "1200+10"]

{[%evp 9,73,-10,7,-16,-8,-22,-18,-35,-27,-32,-30,-10,-14,-20,-17,-20,-34,-31,-28,-44,-21,-40,-41,-36,-13,-17,-18,-27,-14,-14,-12,-24,2,0,16,0,168,148,165,146,189,168,185,190,192,187,196,187,183,174,351,124,263,241,253,143,256,274,266,204,418,432,418,413,399,312]} 1. b4 {[%emt 0:00:04]} Nf6 {[%emt 0:00:13]} 2. Bb2 {[%emt 0:00:01]} e6 {[%emt 0:00:09]} 3. a3 {[%emt 0:00:02]} c5 {[%emt 0:00:16]} 4. bxc5 {[%emt 0:00:06]} Bxc5 {[%emt 0:00:02]} 5. e3 {[%emt 0:00:01]} O-O {[%emt 0:00:26]} 6. Nf3 {[%emt 0:00:04] A00: Irregular Openings.} d5 {[%emt 0:00:16]} 7. Be2 {[%emt 0:00:03]} Nc6 {[%emt 0:00:08]} 8. O-O {[%emt 0:00:03] The position is equal.} d4 {[%emt 0:00:16]} 9. exd4 {[%emt 0:01:04]} Nxd4 {[%emt 0:00:02]} 10. Nxd4 {[%emt 0:00:08]} Bxd4 {[%emt 0:00:01] [#]} 11. Bxd4 $146 {[%emt 0:00:16]} ({Predecessor:} 11. c3 Bb6 12. d4 Bd7 13. Bf3 Qc7 14. Nd2 Bc6 15. c4 Rad8 16. d5 exd5 17. Bxf6 gxf6 {0-1 (44) Mamuzic,M (2233)-Geleta,J (2266) Senta 2006}) 11... Qxd4 {[%emt 0:00:02]} 12. c3 {[%emt 0:00:01]} Qd6 {[%emt 0:00:50]} 13. d4 {[%emt 0:00:08]} b6 {[%emt 0:01:08]} 14. Bf3 {Against Bb7} Rb8 {[%cal Ba8b8,Bb8c8,Bc8c7][%mdl 32]} 15. Nd2 {[%emt 0:00:15]} Ba6 {[%emt 0:00:11]} 16. Re1 {[%emt 0:00:28]} Rbc8 {[%emt 0:01:20]} 17. Qa4 {[%emt 0:01:37]} Bd3 {[%emt 0:01:25]} 18. Rac1 {[%emt 0:01:19]} Rc7 {[%emt 0:00:20]} 19. Re3 {[%emt 0:01:34]} Bf5 {[%emt 0:01:41]} 20. Nc4 {[%emt 0:00:49]} Qf4 {[%emt 0:00:35]} 21. g3 {[%emt 0:00:42]} Qg5 {[%emt 0:03:20][%cal Of5e4]} 22. Ne5 {[%emt 0:00:46]} Rfc8 $2 {[%emt 0:00:56]} (22... Be4 $11) 23. h4 $18 {[%emt 0:03:32]} Qh6 {[%emt 0:00:15][%cal Of5e4]} 24. g4 $36 {[%emt 0:00:30][%mdl 2048] White is on the roll.} Nxg4 {[%emt 0:03:57]} 25. Bxg4 {[%emt 0:03:00]} ({Not} 25. Nxg4 Qxh4 26. Nh2 Qg5+ 27. Kh1 Qh4 $14) 25... Bxg4 {[%emt 0:03:10]} 26. Nxg4 {[%emt 0:00:02]} Qxh4 {[%emt 0:00:02]} 27. Rg3 {[%emt 0:00:45]} h5 {[%emt 0:00:48] [#]} 28. Ne5 {[%emt 0:00:59]} Qf4 {[%emt 0:00:33]} 29. Qd1 {[%emt 0:00:22]} f6 $2 {[%emt 0:01:11] [#]} (29... Rd8 {might work better.} 30. Nd3 Qh6) 30. Nd3 $2 {[%emt 0:00:46]} (30. Ng6 $1 $18 {[%cal Rg6f4] is the precise move to win.} Qf5 31. a4) 30... Qh6 {[%emt 0:00:18] Black cannot hold the game after this.} (30... Qf5 $16) 31. Qe1 {[%emt 0:01:05]} Kf7 {[%emt 0:00:27]} 32. Nb4 {[%emt 0:02:32]} (32. Qe2 $18) 32... a5 {[%emt 0:00:53]} (32... Re8 $16 33. Nd3 h4) 33. Nd3 {[%emt 0:00:53]} h4 {[%emt 0:00:11]} 34. Rg4 {[%emt 0:00:15]} f5 $2 {[%emt 0:00:08]} (34... Qh7) 35. Ne5+ {[%emt 0:00:16]} Kg8 36. Rg6 Qf4 {[%emt 0:00:40]} 37. Rc2 {Weighted Error Value: White=0.19 (very precise) /Black=0.39} 1-0

[Event "Czech Open-Rapid 2022"]
[Site "Pardubice"]
[Date "2022.07.21"]
[Round "4.33"]
[White "Mierins, Emils Janis"]
[Black "Stocek, Martin"]
[Result "1-0"]
[ECO "B13"]
[WhiteElo "2042"]
[BlackElo "1851"]
[Annotator "TA"]
[PlyCount "139"]
[EventDate "2022.07.20"]
[EventType "swiss"]
[EventCountry "CZE"]
[SourceTitle "playchess.com"]
[Source "ChessBase"]
[SourceQuality "1"]
[TimeControl "1200+10"]

{[%evp 14,139,30,17,42,31,47,49,48,43,48,33,59,44,56,53,58,13,18,16,52,6,8,0,8,0,21,39,30,55,40,14,13,-14,-14,-56,0,-12,0,0,4,5,23,-49,0,0,0,0,4,0,3,2,0,0,241,233,232,236,347,339,315,326,326,347,326,280,375,257,250,251,477,448,404,393,1147,1153,1136,1136,29973,29974,29973,29975,29976,29977,29977,29977,29977,29978,29979,29980,29981,29981,29981,29979,29979,0,29981,29980,29980,29972,29959,29950,5704,11532,29984,29985,29991,29992,29992,29993,29993,29983,29983,29984,29986,29985,29985,29985,29985,29986,29986,29987,29987,29988,29994,29989,29997,29998]} 1. e4 {[%emt 0:00:03]} c6 {[%emt 0:00:01]} 2. d4 {[%emt 0:00:03]} d5 {[%emt 0:00:01]} 3. exd5 {[%emt 0:00:02]} cxd5 {[%emt 0:00:01]} 4. Bd3 {[%emt 0:00:03]} Nf6 {[%emt 0:00:02]} 5. c3 {[%emt 0:00:24]} Nc6 {[%emt 0:00:05]} 6. Bf4 {[%emt 0:00:03]} Bg4 {[%emt 0:01:11][%cal Bc8g4,Bg4h5,Bh5g6][%mdl 32]} 7. Qb3 {[%emt 0:00:02]} Qd7 {[%emt 0:00:05]} 8. Nd2 {[%emt 0:00:06]} a6 {[%emt 0:01:25] B13: Caro-Kann: Exchange Variation and Panov-Botvinnik Attack.} 9. Ngf3 {[%emt 0:00:05]} Bh5 {[%emt 0:00:19]} 10. Ne5 {[%emt 0:05:00]} Qc8 {[%emt 0:00:21] White is slightly better.} 11. O-O {[%emt 0:00:27]} e6 {[%emt 0:00:05]} 12. Nxc6 {[%emt 0:01:01]} Qxc6 {[%emt 0:01:56]} 13. c4 {[%emt 0:01:24] [#]} Bg6 $146 {[%emt 0:06:16]} ({Predecessor:} 13... Be7 14. c5 O-O 15. Qc2 b6 16. b4 Bg6 17. Nb3 Nd7 18. a4 bxc5 19. dxc5 e5 20. Bxg6 hxg6 {½-½ (48) Shyam,S (2521)-Panda,S (2085) Bhubaneswar 2018}) 14. Rac1 {[%emt 0:01:38]} Bd6 {[%emt 0:07:45]} 15. cxd5 {[%emt 0:06:04]} (15. Be5 {with more complications.} Bxd3 16. Qxd3 O-O 17. Bxf6 gxf6 18. c5) 15... Qxd5 {[%emt 0:00:01]} 16. Bxd6 {[%emt 0:00:09]} Qxd6 {[%emt 0:00:06]} 17. Qxb7 {[%emt 0:01:20]} (17. Nc4 $1 $14 {is superior.} Qe7 18. Bxg6 hxg6 {[#]} 19. Qxb7 $1 Qxb7 20. Nd6+ Kf8 21. Nxb7) 17... O-O $11 {[%emt 0:01:20]} 18. Bxg6 {[%emt 0:00:11]} hxg6 {[%emt 0:00:10]} 19. Nb3 {[%emt 0:00:52]} a5 {[%emt 0:00:22]} 20. Qc6 {[%emt 0:00:31]} Qf4 {[%emt 0:01:04]} 21. g3 {[%emt 0:00:28]} Qg4 {[%emt 0:00:01]} 22. Rfe1 {[%emt 0:00:11]} a4 {[%emt 0:00:05]} 23. Nc5 {[%emt 0:00:37]} Qxd4 {[%emt 0:00:08]} 24. Re2 {[%emt 0:03:06]} Rfc8 {[%emt 0:00:06]} (24... Rac8 $1 $15 25. Qb5 Qd5) 25. Qb5 {[%emt 0:00:04]} Rab8 {[%emt 0:00:20]} 26. Qc4 {[%emt 0:00:19]} Qd6 {[%emt 0:00:52]} 27. Rec2 {[%emt 0:00:06]} Nd7 {[%emt 0:00:15][%cal Bf6d7,Bd7e5,Be5d3][%mdl 32]} 28. Nb7 {[%emt 0:00:12]} Rxc4 {[%emt 0:00:13]} (28... Qb6 $1 $15 29. Qxc8+ Rxc8 30. Rxc8+ Kh7) 29. Nxd6 {[%emt 0:00:01]} Rxc2 {[%emt 0:00:03]} 30. Rxc2 $15 {[%emt 0:00:02][%mdl 4096] Endgame KRN-KRN} Ne5 {[%emt 0:00:10]} 31. f4 {[%emt 0:00:30]} Nd3 {[%emt 0:00:06]} 32. b3 {[%emt 0:00:12]} axb3 {[%emt 0:00:20]} 33. axb3 {[%emt 0:00:01]} Rxb3 $2 {[%emt 0:00:10] White leaves nothing to chance now.} (33... Rd8 $11 34. Ne4 e5) 34. Rc8+ $18 {[%emt 0:00:01]} Kh7 {[%emt 0:00:01]} 35. Nxf7 {[%emt 0:00:01][%csl Gf7][%cal Rc8h8] [#]} Rb1+ {[%emt 0:00:10]} (35... g5 {was necessary.} 36. Nxg5+ Kg6 37. Nxe6 Rb6) 36. Kg2 {[%emt 0:00:01][%csl Gf7][%cal Rc8h8]} g5 {[%emt 0:00:06]} 37. Nxg5+ {[%emt 0:00:03]} Kg6 {[%emt 0:00:02]} 38. Nxe6 {[%emt 0:00:21]} Rb2+ {[%emt 0:00:03]} 39. Kh3 {[%emt 0:00:28]} Kf6 {[%emt 0:00:10]} 40. Nd4 {[%emt 0:00:06]} Nf2+ {[%emt 0:00:10]} 41. Kh4 {[%emt 0:00:03]} Rb4 $2 {[%emt 0:00:31]} (41... Ne4 42. Rc6+ Kf7) 42. Rc6+ {[%emt 0:00:03]} Kf7 {[%emt 0:00:03]} 43. Nf3 {[%emt 0:00:06]} Ne4 $2 {[%emt 0:00:22]} (43... Rb8 44. Kh5 Rh8+ 45. Kg5 Rd8 46. Ne5+ Ke8) 44. Ng5+ {[%emt 0:00:08]} Nxg5 {[%emt 0:00:01]} 45. Kxg5 {[%emt 0:00:02] White wants to mate with h4. KR-KR} Rb2 {[%emt 0:00:01]} 46. h4 {[%emt 0:00:01]} Rb3 {[%emt 0:00:03]} 47. g4 {[%emt 0:00:02]} Rb1 {[%emt 0:00:04]} 48. h5 {[%emt 0:00:06]} Rb7 {[%emt 0:00:18]} 49. h6 {[%emt 0:00:04]} gxh6+ {[%emt 0:00:12]} 50. Rxh6 {[%emt 0:00:02]} Kg7 {[%emt 0:00:01]} 51. f5 {[%emt 0:00:05]} Rb4 {[%emt 0:00:00]} 52. Rc6 {[%emt 0:00:04]} Rb7 53. Kh5 {[%emt 0:00:08]} Rb5 {[%emt 0:00:05]} 54. Kg5 {[%emt 0:01:03]} Rb7 $1 {[%emt 0:00:01]} 55. Re6 {[%emt 0:00:02]} Kf7 {[%emt 0:00:29]} 56. Kf4 {[%emt 0:00:03]} Rb4+ {[%emt 0:00:01]} 57. Re4 {[%emt 0:00:02]} Rb7 {[%emt 0:00:01]} 58. g5 {[%emt 0:00:03][%cal Bg4g5,Bg5g6][%mdl 32] g6+ would kill now.} Rb5 {[%emt 0:00:10]} 59. g6+ {[%emt 0:00:03] White mates.} Kf6 {[%emt 0:00:02]} 60. Re6+ {[%emt 0:00:02]} Kg7 {[%emt 0:00:01]} 61. Re7+ {[%emt 0:00:02]} Kf8 {[%emt 0:00:09]} 62. Rf7+ {[%emt 0:00:03]} Kg8 {[%emt 0:00:01]} 63. Kg5 {[%emt 0:00:01]} Rb6 {[%emt 0:00:01]} 64. Rc7 {[%emt 0:00:03]} Rb5 {[%emt 0:00:15]} 65. Re7 {[%emt 0:00:42]} Kf8 {[%emt 0:00:07]} 66. Rf7+ {[%emt 0:00:35]} Kg8 {[%emt 0:00:02]} 67. Kh6 {[%emt 0:00:42]} Rb1 {[%emt 0:00:02]} 68. Rc7 {[%emt 0:00:04][%cal Rc7c8]} Rh1+ {[%emt 0:00:05]} 69. Kg5 {[%emt 0:00:02]} Rg1+ {[%emt 0:00:02]} 70. Kf6 {[%emt 0:00:02] Weighted Error Value: White=0.13 (very precise) /Black=0.47} 1-0

[Event "Czech Open-Rapid 2022"]
[Site "Pardubice"]
[Date "2022.07.21"]
[Round "4.34"]
[White "Soukup, Stepan"]
[Black "Michelle Catherina, P."]
[Result "0-1"]
[ECO "A62"]
[WhiteElo "1809"]
[BlackElo "2141"]
[Annotator "NA RC"]
[PlyCount "52"]
[EventDate "2022.07.20"]
[EventType "swiss"]
[EventCountry "CZE"]
[SourceTitle "playchess.com"]
[Source "ChessBase"]
[SourceQuality "1"]
[TimeControl "1200+10"]

1. d4 {[%emt 0:00:02]} Nf6 {[%emt 0:00:07]} 2. c4 {[%emt 0:00:02]} c5 {[%emt 0:00:23]} 3. d5 {[%emt 0:00:02]} e6 {[%emt 0:00:03]} 4. Nc3 {[%emt 0:00:04]} exd5 {[%emt 0:00:05]} 5. cxd5 {[%emt 0:00:03]} d6 {[%emt 0:00:06]} 6. Nf3 {[%emt 0:00:06]} g6 {[%emt 0:00:03]} 7. g3 {[%emt 0:00:04]} Bg7 {[%emt 0:00:02]} 8. Bg2 {[%emt 0:00:02]} O-O {[%emt 0:00:12]} 9. O-O {[%emt 0:00:03]} Re8 {[%emt 0:00:59]} 10. Re1 {[%emt 0:01:41]} a6 {[%emt 0:02:37]} 11. a4 {[%emt 0:00:03]} h6 {[%emt 0:00:38]} 12. e4 {[%emt 0:01:00]} Nbd7 {[%emt 0:00:36]} 13. Qc2 {[%emt 0:01:51]} Ng4 {[%emt 0:02:12]} 14. Nd2 {[%emt 0:03:58]} Qf6 {[%emt 0:01:03]} 15. Re2 {[%emt 0:02:24]} g5 {[%emt 0:01:18]} 16. Nc4 {[%emt 0:01:03]} Rb8 {[%emt 0:01:36]} 17. h3 {[%emt 0:05:50]} Nge5 {[%emt 0:00:04]} 18. Nxe5 {[%emt 0:00:13]} Nxe5 {[%emt 0:00:21]} 19. Be3 {[%emt 0:01:41]} Nf3+ {[%emt 0:01:44]} 20. Bxf3 {[%emt 0:00:03]} Qxf3 {[%emt 0:00:01]} 21. Kh2 {[%emt 0:00:06]} b5 {[%emt 0:00:49]} 22. axb5 {[%emt 0:00:02]} axb5 {[%emt 0:00:01]} 23. Rae1 {[%emt 0:01:01]} b4 {[%emt 0:02:26]} 24. Nd1 {[%emt 0:00:26]} b3 {[%emt 0:00:33]} 25. Qd2 {[%emt 0:00:20]} Rxe4 {[%emt 0:00:44]} 26. Nc3 {[%emt 0:00:06]} Rh4 {[%emt 0:02:01]} 0-1

[Event "Czech Open-Rapid 2022"]
[Site "Pardubice"]
[Date "2022.07.21"]
[Round "4.35"]
[White "Lev, Lukas"]
[Black "Jares, Michal"]
[Result "0-1"]
[ECO "A04"]
[WhiteElo "1679"]
[BlackElo "2208"]
[Annotator "TA"]
[PlyCount "52"]
[EventDate "2022.07.20"]
[EventType "swiss"]
[EventCountry "CZE"]
[SourceTitle "playchess.com"]
[Source "ChessBase"]
[SourceQuality "1"]
[TimeControl "1200+10"]

{[%evp 16,52,31,26,33,27,29,0,0,0,0,0,41,31,76,75,125,98,122,75,93,0,0,0,0,-108,-69,-114,-124,-119,-116,-154,-144,-154,-158,-189,-143,-189,-175]} 1. Nf3 {[%emt 0:00:05]} c5 {[%emt 0:00:02]} 2. g3 {[%emt 0:00:03]} Nc6 {[%emt 0:00:07]} 3. Bg2 {[%emt 0:00:02]} g6 {[%emt 0:00:00]} 4. d4 {[%emt 0:00:06]} cxd4 {[%emt 0:00:10]} 5. Nxd4 {[%emt 0:00:04]} Bg7 {[%emt 0:00:05]} 6. Nxc6 {[%emt 0:00:26]} bxc6 {[%emt 0:00:07]} 7. O-O {[%emt 0:00:05]} Nf6 {[%emt 0:00:14]} 8. c4 {[%emt 0:00:31]} O-O 9. Nc3 {[%emt 0:00:32]} Qc7 {[%emt 0:00:43] A04: Unusual lines after 1 Nf3 and King's Indian Attack.} 10. Bd2 {[%emt 0:01:08]} d6 {[%emt 0:01:03] [#]} 11. Nb5 $146 {[%emt 0:01:09]} ({Predecessor:} 11. Rc1 Rb8 12. b3 Nd7 13. Qc2 Nc5 14. b4 Ne6 15. Qa4 Bd7 16. e3 a5 17. a3 axb4 18. axb4 {0-1 (49) Vukelic,T (2231)-Lekic,D (2397) Bol 2011}) 11... Qd7 {[%emt 0:01:10] The position is equal.} 12. Nd4 {[%emt 0:00:14]} Bb7 {[%emt 0:00:08]} 13. Qa4 {[%emt 0:00:27]} e5 {[%emt 0:02:25]} 14. Nb3 {[%emt 0:01:25]} ({Avoid the trap} 14. Bxc6 $2 Bxc6 15. Qxc6 (15. Nxc6 $2 Rfc8 $19) 15... exd4 $19) ({Don't blunder} 14. Nxc6 $2 Rfc8 15. Qc2 Bxc6 $19) 14... e4 {[%emt 0:01:13]} 15. Rfd1 {[%emt 0:01:01]} d5 {[%emt 0:07:17]} ({Black should play} 15... Qe7) 16. Bc3 {[%emt 0:01:15] aiming for Bxf6.} e3 {[%emt 0:02:27]} 17. fxe3 {[%emt 0:01:02]} ({Better is} 17. f4) 17... Qe7 {[%emt 0:00:25]} 18. cxd5 {[%emt 0:01:46]} (18. Rd3 $16) 18... Qxe3+ $11 {[%emt 0:00:20]} 19. Kh1 {[%emt 0:00:24]} cxd5 {[%emt 0:00:31]} 20. Qb5 {[%emt 0:03:15] [#]} (20. Rf1 $11 {remains equal.} Ne4 21. Bxg7 Kxg7 22. Qd4+ Qxd4 23. Nxd4) 20... Ne4 $1 {[%emt 0:01:44] ( -> ...Nf2+)} 21. Be1 {[%emt 0:02:05]} (21. Rf1 Bxc3) 21... Rab8 {[%emt 0:00:33]} 22. Qd3 {[%emt 0:02:40]} Qb6 {[%emt 0:00:28] 0x0.001e39dd661bdp-1022s more active pieces.} 23. e3 {[%emt 0:01:19]} Rfe8 {[%emt 0:00:32] Hoping for ...Ba6. Black is clearly better.} 24. Rac1 {[%emt 0:01:04]} Bh6 {[%emt 0:00:45]} 25. Nd4 {[%emt 0:01:14]} Qxb2 {[%emt 0:00:17]} (25... Nd6 $19 26. Bf2 Nc4) 26. Rc2 {[%emt 0:00:10]} (26. a4 $17 {was worth a try.}) 26... Qb6 {[%emt 0:00:10] Weighted Error Value: White=0.28 (precise) /Black=0.15 (very precise)} 0-1